[Event "*** Titled Tuesday 3|2 Blitz"]
[Site "Chess.com"]
[Date "2015.10.06"]
[Round "6"]
[White "Assasin14"]
[Black "LePlusMortel"]
[Result "0-1"]
[WhiteElo "1748"]
[BlackElo "2387"]
[TimeControl "180+2"]
[EndTime "18:17:38 PDT"]
[Termination "LePlusMortel won by checkmate"]

1. e4 {[%clk 0:03:01.9]} 1... a5 {[%clk 0:02:59.2]} 2. d4 {[%clk 0:02:58.9]}
2... a4 {[%clk 0:02:59.5]} 3. Nf3 {[%clk 0:02:54.3]} 3... e6 {[%clk 0:03:01]} 4.
c4 {[%clk 0:02:51.8]} 4... d6 {[%clk 0:03:00.2]} 5. Nc3 {[%clk 0:02:51.9]} 5...
Bd7 {[%clk 0:03:01.8]} 6. Be2 {[%clk 0:02:51.1]} 6... g6 {[%clk 0:03:02.8]} 7.
O-O {[%clk 0:02:51.6]} 7... Bg7 {[%clk 0:03:04.4]} 8. Bg5 {[%clk 0:02:51.5]}
8... f6 {[%clk 0:03:05.3]} 9. Be3 {[%clk 0:02:52.1]} 9... e5 {[%clk 0:03:07]}
10. dxe5 {[%clk 0:02:50.8]} 10... fxe5 {[%clk 0:03:07.5]} 11. Bg5 {[%clk
0:02:51]} 11... Bf6 {[%clk 0:03:04.2]} 12. h4 {[%clk 0:02:45.7]} 12... h6 {[%clk
0:03:03.2]} 13. Bxf6 {[%clk 0:02:44.8]} 13... Nxf6 {[%clk 0:03:05.1]} 14. Qc2
{[%clk 0:02:43]} 14... b6 {[%clk 0:03:01]} 15. Nd5 {[%clk 0:02:42.9]} 15... O-O
{[%clk 0:02:54]} 16. Rad1 {[%clk 0:02:29.2]} 16... Nc6 {[%clk 0:02:44.7]} 17.
Nxf6+ {[%clk 0:02:01.6]} 17... Qxf6 {[%clk 0:02:44.5]} 18. h5 {[%clk 0:02:02.2]}
18... g5 {[%clk 0:02:42.3]} 19. Nh2 {[%clk 0:01:55.3]} 19... Nd4 {[%clk
0:02:37.6]} 20. Qd2 {[%clk 0:01:54.9]} 20... a3 {[%clk 0:02:36.3]} 21. b3 {[%clk
0:01:45.3]} 21... Kg7 {[%clk 0:02:35.2]} 22. Bg4 {[%clk 0:01:30.3]} 22... Bc6
{[%clk 0:02:12.6]} 23. f3 {[%clk 0:01:13]} 23... Qf4 {[%clk 0:02:06.9]} 24. Qxf4
{[%clk 0:01:13.3]} 24... gxf4 {[%clk 0:02:08.8]} 25. Rxd4 {[%clk 0:01:05.6]}
25... exd4 {[%clk 0:02:09.2]} 26. Rd1 {[%clk 0:01:06.4]} 26... Be8 {[%clk
0:01:33.1]} 27. Rxd4 {[%clk 0:01:05.4]} 27... Kf6 {[%clk 0:01:24.4]} 28. g3
{[%clk 0:00:50.8]} 28... fxg3 {[%clk 0:00:47.3]} 29. Nf1 {[%clk 0:00:50.1]}
29... Bf7 {[%clk 0:00:41.3]} 30. Nxg3 {[%clk 0:00:47.3]} 30... Ke5 {[%clk
0:00:42.1]} 31. Nf5 {[%clk 0:00:29.1]} 31... Be6 {[%clk 0:00:38.2]} 32. Rd2
{[%clk 0:00:25.6]} 32... Bxf5 {[%clk 0:00:38.6]} 33. Bxf5 {[%clk 0:00:26]} 33...
Kf4 {[%clk 0:00:31.2]} 34. Kf2 {[%clk 0:00:24.4]} 34... Ra5 {[%clk 0:00:32.8]}
35. Rd1 {[%clk 0:00:18.1]} 35... Rg8 {[%clk 0:00:33.6]} 36. Bg6 {[%clk
0:00:18.2]} 36... Rg5 {[%clk 0:00:34]} 37. Rd2 {[%clk 0:00:17.2]} 37... Rg3
{[%clk 0:00:23.1]} 38. Rd3 {[%clk 0:00:16.1]} 38... Ra8 {[%clk 0:00:20.6]} 39.
Bf5 {[%clk 0:00:16.1]} 39... Rg5 {[%clk 0:00:21.6]} 40. Bg6 {[%clk 0:00:16.5]}
40... Raa5 {[%clk 0:00:22.6]} 41. Rd5 {[%clk 0:00:17.2]} 41... Raxd5 {[%clk
0:00:22.5]} 42. cxd5 {[%clk 0:00:18.3]} 42... Rg3 {[%clk 0:00:23.5]} 43. Ke2
{[%clk 0:00:17.5]} 43... Rxf3 {[%clk 0:00:24.6]} 44. Kd1 {[%clk 0:00:17.5]}
44... Rxb3 {[%clk 0:00:24.6]} 45. axb3 {[%clk 0:00:18.3]} 45... a2 {[%clk
0:00:25.9]} 46. e5 {[%clk 0:00:18.8]} 46... Kxe5 {[%clk 0:00:26.6]} 47. Bb1
{[%clk 0:00:20.7]} 47... axb1=Q+ {[%clk 0:00:27.3]} 48. Kd2 {[%clk 0:00:21.4]}
48... Kd4 {[%clk 0:00:26.2]} 49. b4 {[%clk 0:00:15]} 49... Qb2+ {[%clk
0:00:26.3]} 50. Kd1 {[%clk 0:00:15.7]} 50... Ke3 {[%clk 0:00:26.6]} 51. Ke1
{[%clk 0:00:17.6]} 51... Qc1# {[%clk 0:00:16.1]} 0-1

[Event "*** Titled Tuesday 3|2 Blitz"]
[Site "Chess.com"]
[Date "2015.10.06"]
[Round "6"]
[White "facu57"]
[Black "Tal-Baronfew"]
[Result "0-1"]
[WhiteElo "2522"]
[BlackElo "2751"]
[TimeControl "180+2"]
[EndTime "18:17:52 PDT"]
[Termination "Tal-Baronfew won by resignation"]

1. e4 {[%clk 0:03:01.9]} 1... e6 {[%clk 0:03:00.8]} 2. d4 {[%clk 0:03:02.1]}
2... d5 {[%clk 0:03:02.1]} 3. exd5 {[%clk 0:03:02.8]} 3... exd5 {[%clk 0:03:03]}
4. Nf3 {[%clk 0:03:03.2]} 4... Bd6 {[%clk 0:02:35.1]} 5. Bd3 {[%clk 0:03:03.5]}
5... Nf6 {[%clk 0:02:28.4]} 6. O-O {[%clk 0:03:03.8]} 6... O-O {[%clk
0:02:24.4]} 7. Bg5 {[%clk 0:03:03.2]} 7... c6 {[%clk 0:02:12.7]} 8. c3 {[%clk
0:02:52.6]} 8... Bg4 {[%clk 0:02:09.7]} 9. Nbd2 {[%clk 0:02:49.7]} 9... Nbd7
{[%clk 0:02:10.7]} 10. h3 {[%clk 0:02:50]} 10... Bh5 {[%clk 0:02:10.9]} 11. Qc2
{[%clk 0:02:46]} 11... Qc7 {[%clk 0:02:10.8]} 12. Rfe1 {[%clk 0:02:43.1]} 12...
Rae8 {[%clk 0:02:04.7]} 13. Rxe8 {[%clk 0:02:40.4]} 13... Rxe8 {[%clk 0:02:06]}
14. Re1 {[%clk 0:02:39.4]} 14... Rxe1+ {[%clk 0:02:05.9]} 15. Nxe1 {[%clk
0:02:41.3]} 15... Bg6 {[%clk 0:01:55.6]} 16. Bxg6 {[%clk 0:02:39.9]} 16... hxg6
{[%clk 0:01:57.1]} 17. Nd3 {[%clk 0:02:37.7]} 17... Nf8 {[%clk 0:01:58.1]} 18.
Qd1 {[%clk 0:02:31.9]} 18... Ne6 {[%clk 0:01:59.2]} 19. Bxf6 {[%clk 0:02:30.4]}
19... gxf6 {[%clk 0:02:00.1]} 20. Qe2 {[%clk 0:02:29.3]} 20... Kg7 {[%clk
0:02:00.7]} 21. g3 {[%clk 0:02:25.5]} 21... b6 {[%clk 0:01:50.9]} 22. Kg2 {[%clk
0:02:17]} 22... a5 {[%clk 0:01:51.7]} 23. a4 {[%clk 0:02:04.6]} 23... c5 {[%clk
0:01:50.5]} 24. Qf3 {[%clk 0:01:57.8]} 24... cxd4 {[%clk 0:01:46.9]} 25. Qxd5
{[%clk 0:01:56]} 25... dxc3 {[%clk 0:01:47.9]} 26. bxc3 {[%clk 0:01:57.3]} 26...
Be7 {[%clk 0:01:47.8]} 27. c4 {[%clk 0:01:46.9]} 27... f5 {[%clk 0:01:49.2]} 28.
Nf3 {[%clk 0:01:22.8]} 28... Bf6 {[%clk 0:01:49.7]} 29. h4 {[%clk 0:01:21.9]}
29... Qe7 {[%clk 0:01:50.9]} 30. Nfe5 {[%clk 0:01:05.1]} 30... f4 {[%clk
0:01:45.6]} 31. Qd7 {[%clk 0:00:55.1]} 31... fxg3 {[%clk 0:01:46.9]} 32. Qxe7
{[%clk 0:00:55.9]} 32... Bxe7 {[%clk 0:01:48.2]} 33. fxg3 {[%clk 0:00:57.2]}
33... Bd6 {[%clk 0:01:40.5]} 34. Nf3 {[%clk 0:00:50.6]} 34... f6 {[%clk
0:01:33.6]} 35. Kf2 {[%clk 0:00:28.8]} 35... Kh6 {[%clk 0:01:31.6]} 36. Nd2
{[%clk 0:00:29.5]} 36... f5 {[%clk 0:01:16.7]} 37. Kf3 {[%clk 0:00:29.1]} 37...
Kh5 {[%clk 0:01:14.2]} 38. Nf1 {[%clk 0:00:24.3]} 38... Nd4+ {[%clk 0:01:07.2]}
39. Kf2 {[%clk 0:00:25.1]} 39... Kg4 {[%clk 0:01:04]} 40. Ne3+ {[%clk
0:00:26.3]} 40... Kh3 {[%clk 0:01:03]} 41. Nf4+ {[%clk 0:00:26.8]} 41... Bxf4
{[%clk 0:01:03.7]} 42. gxf4 {[%clk 0:00:28.7]} 42... Kxh4 {[%clk 0:01:04.7]} 43.
Nd5 {[%clk 0:00:29.5]} 43... Kg4 {[%clk 0:01:03.3]} 44. Ke3 {[%clk 0:00:30.6]}
44... Ne6 {[%clk 0:01:01.6]} 45. Nxb6 {[%clk 0:00:31.2]} 45... Nxf4 {[%clk
0:01:03.1]} 46. c5 {[%clk 0:00:27.5]} 46... Ne6 {[%clk 0:01:04.4]} 47. c6 {[%clk
0:00:26.3]} 47... Kg3 {[%clk 0:01:05.9]} 48. Nd5 {[%clk 0:00:25.3]} 48... f4+
{[%clk 0:01:07.2]} 49. Kd3 {[%clk 0:00:18.9]} 49... f3 {[%clk 0:01:05.4]} 50.
Ne3 {[%clk 0:00:18.4]} 50... g5 {[%clk 0:01:02]} 51. Ke4 {[%clk 0:00:19.9]}
51... g4 {[%clk 0:00:59.5]} 52. Ke5 {[%clk 0:00:21.4]} 52... Nc7 {[%clk
0:00:58.4]} 53. Kd6 {[%clk 0:00:23.1]} 53... Na6 {[%clk 0:00:58.7]} 54. c7
{[%clk 0:00:22]} 54... Nxc7 {[%clk 0:00:59.4]} 55. Kxc7 {[%clk 0:00:23.9]} 55...
Kf4 {[%clk 0:00:58.8]} 56. Nd5+ {[%clk 0:00:23.2]} 56... Ke4 {[%clk 0:00:58.7]}
57. Nf6+ {[%clk 0:00:24.5]} 57... Kf5 {[%clk 0:00:57.8]} 58. Nh5 {[%clk
0:00:24.7]} 58... f2 {[%clk 0:00:57.1]} 59. Ng3+ {[%clk 0:00:24]} 59... Kf4
{[%clk 0:00:57.7]} 60. Nf1 {[%clk 0:00:25.9]} 60... g3 {[%clk 0:00:58.6]} 61.
Nxg3 {[%clk 0:00:25.6]} 61... Kxg3 {[%clk 0:00:59.5]} 62. Kb6 {[%clk 0:00:27.5]}
62... f1=Q {[%clk 0:01:00.3]} 0-1

[Event "*** Titled Tuesday 3|2 Blitz"]
[Site "Chess.com"]
[Date "2015.10.06"]
[Round "6"]
[White "IM_Michal_Luch"]
[Black "jbj"]
[Result "0-1"]
[WhiteElo "2357"]
[BlackElo "2314"]
[TimeControl "180+2"]
[EndTime "18:17:56 PDT"]
[Termination "jbj won by resignation"]

1. d4 {[%clk 0:03:01.9]} 1... Nf6 {[%clk 0:03:00.9]} 2. c4 {[%clk 0:03:03.4]}
2... e6 {[%clk 0:03:02.1]} 3. Nc3 {[%clk 0:03:04]} 3... Bb4 {[%clk 0:03:03]} 4.
Qc2 {[%clk 0:03:05.2]} 4... d5 {[%clk 0:03:04]} 5. a3 {[%clk 0:03:02.6]} 5...
Bxc3+ {[%clk 0:03:04.9]} 6. Qxc3 {[%clk 0:03:04.5]} 6... Ne4 {[%clk 0:03:05.9]}
7. Qc2 {[%clk 0:03:04.7]} 7... c5 {[%clk 0:03:07.2]} 8. dxc5 {[%clk 0:03:03.1]}
8... Nc6 {[%clk 0:03:08.5]} 9. Nf3 {[%clk 0:02:41.8]} 9... Qa5+ {[%clk
0:03:04.6]} 10. Bd2 {[%clk 0:02:40.8]} 10... Qxc5 {[%clk 0:02:50.6]} 11. e3
{[%clk 0:02:40.4]} 11... Nxd2 {[%clk 0:02:47.3]} 12. Nxd2 {[%clk 0:02:42.3]}
12... d4 {[%clk 0:02:45]} 13. b4 {[%clk 0:02:25.5]} 13... Qe5 {[%clk 0:02:43]}
14. Nf3 {[%clk 0:02:25.3]} 14... Qf6 {[%clk 0:02:40.3]} 15. exd4 {[%clk
0:02:21.3]} 15... Nxd4 {[%clk 0:02:39.6]} 16. Nxd4 {[%clk 0:02:22.2]} 16... Qxd4
{[%clk 0:02:41.5]} 17. Rd1 {[%clk 0:02:23.4]} 17... Qe5+ {[%clk 0:02:40.3]} 18.
Be2 {[%clk 0:02:24.6]} 18... Bd7 {[%clk 0:02:35]} 19. O-O {[%clk 0:02:18.2]}
19... Rd8 {[%clk 0:02:31.8]} 20. Bf3 {[%clk 0:02:16.2]} 20... b6 {[%clk
0:02:21.8]} 21. Rfe1 {[%clk 0:02:05.8]} 21... Qc7 {[%clk 0:02:12.7]} 22. c5
{[%clk 0:01:36.7]} 22... bxc5 {[%clk 0:02:12.4]} 23. bxc5 {[%clk 0:01:38.6]}
23... O-O {[%clk 0:02:07.9]} 24. Rd6 {[%clk 0:01:35.5]} 24... Bb5 {[%clk
0:02:01.7]} 25. Qd2 {[%clk 0:01:28.1]} 25... Rc8 {[%clk 0:01:56.9]} 26. c6
{[%clk 0:01:23.4]} 26... Rfd8 {[%clk 0:01:55.9]} 27. Rd1 {[%clk 0:01:11.7]}
27... Rxd6 {[%clk 0:01:52.3]} 28. Qxd6 {[%clk 0:01:13.6]} 28... Qxd6 {[%clk
0:01:53.4]} 29. Rxd6 {[%clk 0:01:15.5]} 29... Kf8 {[%clk 0:01:54.9]} 30. h4
{[%clk 0:01:10.3]} 30... Rc7 {[%clk 0:01:52.1]} 31. Rd4 {[%clk 0:00:26.6]} 31...
Ke7 {[%clk 0:01:48.1]} 32. Rb4 {[%clk 0:00:16]} 32... a6 {[%clk 0:01:49]} 33. a4
{[%clk 0:00:12.5]} 33... Bxc6 {[%clk 0:01:49.8]} 34. Bxc6 {[%clk 0:00:13.4]}
34... Rxc6 {[%clk 0:01:51.1]} 35. Rb7+ {[%clk 0:00:15.1]} 35... Kf6 {[%clk
0:01:51.3]} 36. Ra7 {[%clk 0:00:15.7]} 36... h5 {[%clk 0:01:31.1]} 37. g3 {[%clk
0:00:16.9]} 37... e5 {[%clk 0:01:30.2]} 38. Kg2 {[%clk 0:00:18.2]} 38... Ke6
{[%clk 0:01:30.4]} 39. Ra8 {[%clk 0:00:19.5]} 39... g6 {[%clk 0:01:30.8]} 40.
Kf3 {[%clk 0:00:20.6]} 40... Rc3+ {[%clk 0:01:29.2]} 41. Kg2 {[%clk 0:00:21.7]}
41... Rc6 {[%clk 0:01:29.8]} 42. Kf3 {[%clk 0:00:22.4]} 42... Kf5 {[%clk
0:01:31.2]} 43. Ke3 {[%clk 0:00:20.6]} 43... f6 {[%clk 0:01:30]} 44. a5 {[%clk
0:00:21.5]} 44... Kg4 {[%clk 0:01:15.3]} 45. Ke2 {[%clk 0:00:20.2]} 45... f5
{[%clk 0:01:15.4]} 46. Ke3 {[%clk 0:00:19.9]} 46... f4+ {[%clk 0:01:16.3]} 47.
gxf4 {[%clk 0:00:21.3]} 47... exf4+ {[%clk 0:01:18.2]} 48. Ke4 {[%clk 0:00:23]}
48... Re6+ {[%clk 0:01:12.4]} 49. Kd5 {[%clk 0:00:23.8]} 49... Rf6 {[%clk
0:01:13.7]} 50. Ke4 {[%clk 0:00:23.2]} 50... Kxh4 {[%clk 0:01:13.5]} 51. Kf3
{[%clk 0:00:23.1]} 51... g5 {[%clk 0:01:11.8]} 52. Ra7 {[%clk 0:00:20.8]} 52...
g4+ {[%clk 0:01:12.7]} 53. Kg2 {[%clk 0:00:22.2]} 53... f3+ {[%clk 0:01:12.7]}
54. Kh2 {[%clk 0:00:23.6]} 54... Kg5 {[%clk 0:01:13.9]} 55. Rg7+ {[%clk
0:00:23.4]} 55... Kf4 {[%clk 0:01:14.5]} 56. Ra7 {[%clk 0:00:23.2]} 56... h4
{[%clk 0:01:14.4]} 57. Rb7 {[%clk 0:00:24.5]} 57... g3+ {[%clk 0:01:14.7]} 58.
Kg1 {[%clk 0:00:25]} 58... Re6 {[%clk 0:01:09.9]} 59. fxg3+ {[%clk 0:00:21.9]}
59... hxg3 {[%clk 0:01:08.6]} 60. Rf7+ {[%clk 0:00:18]} 60... Ke3 {[%clk
0:01:09.2]} 61. Rb7 {[%clk 0:00:19.2]} 61... Rf6 {[%clk 0:01:02.3]} 62. Rb6
{[%clk 0:00:18.3]} 62... f2+ {[%clk 0:01:02.2]} 63. Kf1 {[%clk 0:00:15.5]} 63...
g2+ {[%clk 0:01:03.4]} 64. Kxg2 {[%clk 0:00:17]} 0-1

[Event "*** Titled Tuesday 3|2 Blitz"]
[Site "Chess.com"]
[Date "2015.10.06"]
[Round "6"]
[White "StellarChessPro"]
[Black "jcibarra"]
[Result "0-1"]
[WhiteElo "2247"]
[BlackElo "2489"]
[TimeControl "180+2"]
[EndTime "18:19:07 PDT"]
[Termination "jcibarra won by resignation"]

1. d4 {[%clk 0:03:01.9]} 1... Nf6 {[%clk 0:03:00.8]} 2. Bg5 {[%clk 0:03:02.4]}
2... c5 {[%clk 0:03:01.4]} 3. Bxf6 {[%clk 0:03:03.3]} 3... gxf6 {[%clk
0:03:03.3]} 4. d5 {[%clk 0:03:05.1]} 4... Qb6 {[%clk 0:03:03.7]} 5. Qc1 {[%clk
0:03:06.3]} 5... f5 {[%clk 0:03:05]} 6. e3 {[%clk 0:03:07.4]} 6... Bg7 {[%clk
0:03:06.4]} 7. c3 {[%clk 0:03:08.7]} 7... d6 {[%clk 0:03:07.9]} 8. Ne2 {[%clk
0:03:09.8]} 8... Nd7 {[%clk 0:03:09.3]} 9. Nf4 {[%clk 0:03:10.9]} 9... Nf6
{[%clk 0:03:09.8]} 10. Be2 {[%clk 0:03:11.9]} 10... e5 {[%clk 0:03:08.8]} 11.
dxe6 {[%clk 0:03:12.8]} 11... fxe6 {[%clk 0:03:10.3]} 12. O-O {[%clk 0:03:14.7]}
12... e5 {[%clk 0:03:10.7]} 13. Nh5 {[%clk 0:03:15]} 13... Nxh5 {[%clk 0:03:09]}
14. Bxh5+ {[%clk 0:03:16.9]} 14... Kd8 {[%clk 0:03:09.5]} 15. c4 {[%clk
0:03:17.8]} 15... Be6 {[%clk 0:03:10.2]} 16. Be2 {[%clk 0:03:16.2]} 16... Kc7
{[%clk 0:03:08.2]} 17. Rd1 {[%clk 0:03:17.1]} 17... Rad8 {[%clk 0:03:04.7]} 18.
Nc3 {[%clk 0:03:18.5]} 18... Kb8 {[%clk 0:03:06]} 19. Nd5 {[%clk 0:03:19]} 19...
Qc6 {[%clk 0:03:05.7]} 20. a4 {[%clk 0:03:14.9]} 20... e4 {[%clk 0:03:00.5]} 21.
Qc2 {[%clk 0:03:11.8]} 21... h5 {[%clk 0:02:55.6]} 22. Rab1 {[%clk 0:03:11.3]}
22... a5 {[%clk 0:02:55.8]} 23. b3 {[%clk 0:03:08.8]} 23... h4 {[%clk
0:02:56.4]} 24. h3 {[%clk 0:03:09.1]} 24... Be5 {[%clk 0:02:57.5]} 25. Qd2
{[%clk 0:03:09.6]} 25... b6 {[%clk 0:02:56.4]} 26. f4 {[%clk 0:03:08.9]} 26...
Bg7 {[%clk 0:02:51.8]} 27. Qc2 {[%clk 0:02:59.5]} 27... Ka7 {[%clk 0:02:50.7]}
28. Rd2 {[%clk 0:02:58.2]} 28... Bf8 {[%clk 0:02:50.5]} 29. Qd1 {[%clk
0:02:56.3]} 29... Rd7 {[%clk 0:02:48.9]} 30. Kh2 {[%clk 0:02:56.6]} 30... Rg7
{[%clk 0:02:49.5]} 31. Nc3 {[%clk 0:02:57.5]} 31... Kb7 {[%clk 0:02:39.7]} 32.
Nb5 {[%clk 0:02:58.3]} 32... Rhg8 {[%clk 0:02:39.4]} 33. Bf1 {[%clk 0:02:58.2]}
33... Rd7 {[%clk 0:02:37.1]} 34. Qe1 {[%clk 0:02:58.8]} 34... Be7 {[%clk
0:02:36.7]} 35. Rbd1 {[%clk 0:02:59.4]} 35... Rg3 {[%clk 0:02:35.1]} 36. Qf2
{[%clk 0:02:53.4]} 36... Bf8 {[%clk 0:02:34.6]} 37. Be2 {[%clk 0:02:52.4]} 37...
d5 {[%clk 0:02:29.7]} 38. cxd5 {[%clk 0:02:51.6]} 38... Rxd5 {[%clk 0:02:30.7]}
39. Bc4 {[%clk 0:02:51.5]} 39... Rd3 {[%clk 0:02:03.5]} 40. Bxe6 {[%clk
0:02:27.4]} 40... Qxe6 {[%clk 0:02:01.4]} 41. Rxd3 {[%clk 0:02:28.4]} 41... exd3
{[%clk 0:02:02.4]} 42. Rxd3 {[%clk 0:02:30.3]} 42... c4 {[%clk 0:01:50.7]} 43.
bxc4 {[%clk 0:02:27.9]} 43... Bb4 {[%clk 0:01:51.5]} 44. Qe2 {[%clk 0:02:12.4]}
44... Qc6 {[%clk 0:01:46.7]} 45. Rd5 {[%clk 0:02:00.5]} 45... Qg6 {[%clk
0:01:18.9]} 46. Rd7+ {[%clk 0:01:44.2]} 46... Kc8 {[%clk 0:01:19.5]} 47. Rc7+
{[%clk 0:01:38.4]} 47... Kb8 {[%clk 0:01:19.6]} 48. Rd7 {[%clk 0:01:27.2]} 48...
Kc8 {[%clk 0:01:18.6]} 49. Rd5 {[%clk 0:01:19.5]} 49... Bc5 {[%clk 0:01:17.1]}
50. Nd4 {[%clk 0:01:06.7]} 50... Bxd4 {[%clk 0:01:01.1]} 51. exd4 {[%clk
0:01:00.9]} 51... Ra3 {[%clk 0:00:48]} 52. Qf1 {[%clk 0:00:15.5]} 52... Qg3+
{[%clk 0:00:43.2]} 53. Kh1 {[%clk 0:00:16.3]} 53... Qc3 {[%clk 0:00:38.5]} 54.
Kh2 {[%clk 0:00:12.6]} 54... Qg3+ {[%clk 0:00:32.7]} 55. Kh1 {[%clk 0:00:13.6]}
55... Qc3 {[%clk 0:00:34]} 56. Kh2 {[%clk 0:00:14.9]} 56... Ra1 {[%clk 0:00:18]}
57. Qf3 {[%clk 0:00:15.2]} 57... Qe1 {[%clk 0:00:18.1]} 58. Rc5+ {[%clk
0:00:14.2]} 58... Kb8 {[%clk 0:00:14.6]} 59. Rc8+ {[%clk 0:00:11.8]} 59... Kxc8
{[%clk 0:00:15.9]} 60. Qc6+ {[%clk 0:00:13.6]} 60... Kd8 {[%clk 0:00:16.8]} 61.
Qxb6+ {[%clk 0:00:14.7]} 61... Ke7 {[%clk 0:00:18.3]} 62. Qc7+ {[%clk
0:00:15.6]} 62... Kf8 {[%clk 0:00:19.2]} 63. Qd8+ {[%clk 0:00:16.6]} 63... Kf7
{[%clk 0:00:20.4]} 64. Qd7+ {[%clk 0:00:17.8]} 64... Kg6 {[%clk 0:00:21.3]} 65.
Qd6+ {[%clk 0:00:14.5]} 65... Kh5 {[%clk 0:00:21.7]} 66. g3 {[%clk 0:00:07.1]}
0-1

[Event "*** Titled Tuesday 3|2 Blitz"]
[Site "Chess.com"]
[Date "2015.10.06"]
[Round "7"]
[White "wonderfultime"]
[Black "LyonBeast"]
[Result "0-1"]
[WhiteElo "2625"]
[BlackElo "2716"]
[TimeControl "180+2"]
[EndTime "18:24:16 PDT"]
[Termination "LyonBeast won by resignation"]

1. d4 {[%clk 0:02:42]} 1... Nf6 {[%clk 0:02:33.2]} 2. c4 {[%clk 0:02:42.2]} 2...
g6 {[%clk 0:02:34.4]} 3. Nc3 {[%clk 0:02:43.1]} 3... d5 {[%clk 0:02:35.3]} 4.
Bg5 {[%clk 0:02:43.7]} 4... Bg7 {[%clk 0:02:35.2]} 5. Bxf6 {[%clk 0:02:43.3]}
5... Bxf6 {[%clk 0:02:37.1]} 6. cxd5 {[%clk 0:02:45.2]} 6... c5 {[%clk
0:02:38.5]} 7. Nf3 {[%clk 0:02:33.7]} 7... cxd4 {[%clk 0:02:39.1]} 8. Nxd4
{[%clk 0:02:35.6]} 8... Qb6 {[%clk 0:02:40.6]} 9. Nb3 {[%clk 0:02:36.3]} 9...
O-O {[%clk 0:02:42.2]} 10. e3 {[%clk 0:02:37.3]} 10... Rd8 {[%clk 0:02:40.7]}
11. Be2 {[%clk 0:02:34.9]} 11... e6 {[%clk 0:02:42]} 12. O-O {[%clk 0:02:34.4]}
12... Nc6 {[%clk 0:02:37.1]} 13. Rc1 {[%clk 0:02:28.2]} 13... Bxc3 {[%clk
0:02:37.9]} 14. Rxc3 {[%clk 0:02:28.4]} 14... exd5 {[%clk 0:02:39]} 15. Bf3
{[%clk 0:02:22.4]} 15... d4 {[%clk 0:02:35.7]} 16. exd4 {[%clk 0:02:23.8]} 16...
Nxd4 {[%clk 0:02:37.6]} 17. Nxd4 {[%clk 0:02:23.1]} 17... Rxd4 {[%clk
0:02:39.5]} 18. Qe2 {[%clk 0:02:18.4]} 18... Be6 {[%clk 0:02:39.4]} 19. Rfc1
{[%clk 0:02:09.8]} 19... Rad8 {[%clk 0:02:37]} 20. b3 {[%clk 0:01:29.7]} 20...
Rd2 {[%clk 0:02:31.6]} 21. Qe5 {[%clk 0:01:21.4]} 21... Qxf2+ {[%clk 0:02:30.5]}
22. Kh1 {[%clk 0:01:21.9]} 22... Rd1+ {[%clk 0:02:32.1]} 0-1

[Event "*** Titled Tuesday 3|2 Blitz"]
[Site "Chess.com"]
[Date "2015.10.06"]
[Round "7"]
[White "HansCoolNiemann"]
[Black "Dlugy"]
[Result "0-1"]
[WhiteElo "2117"]
[BlackElo "2550"]
[TimeControl "180+2"]
[EndTime "18:28:19 PDT"]
[Termination "Dlugy won by checkmate"]

1. d4 {[%clk 0:03:01.9]} 1... Nf6 {[%clk 0:02:59.1]} 2. c4 {[%clk 0:03:02.5]}
2... e6 {[%clk 0:02:58.8]} 3. Nc3 {[%clk 0:03:02.7]} 3... a6 {[%clk 0:02:58.7]}
4. e4 {[%clk 0:02:59]} 4... Bb4 {[%clk 0:02:59.5]} 5. e5 {[%clk 0:02:59.4]} 5...
Ne4 {[%clk 0:02:54.8]} 6. Qc2 {[%clk 0:02:58.9]} 6... Nxc3 {[%clk 0:02:55.5]} 7.
bxc3 {[%clk 0:02:57.5]} 7... Bf8 {[%clk 0:02:55.8]} 8. f4 {[%clk 0:02:57.9]}
8... d6 {[%clk 0:02:55.6]} 9. Nf3 {[%clk 0:02:58.8]} 9... b6 {[%clk 0:02:55.2]}
10. Be2 {[%clk 0:02:56.2]} 10... Bb7 {[%clk 0:02:56.4]} 11. O-O {[%clk
0:02:57.5]} 11... g6 {[%clk 0:02:57.4]} 12. Ng5 {[%clk 0:02:50.3]} 12... Bg7
{[%clk 0:02:56.4]} 13. Bf3 {[%clk 0:02:47.6]} 13... Qc8 {[%clk 0:02:57.8]} 14.
Be3 {[%clk 0:02:44]} 14... Nd7 {[%clk 0:02:58.3]} 15. Ne4 {[%clk 0:02:33.7]}
15... O-O {[%clk 0:02:29.2]} 16. exd6 {[%clk 0:02:31.2]} 16... Rb8 {[%clk
0:02:30.8]} 17. dxc7 {[%clk 0:01:51.2]} 17... Qxc7 {[%clk 0:02:31.3]} 18. Qb3
{[%clk 0:01:45.1]} 18... Rfc8 {[%clk 0:02:28.4]} 19. Nd2 {[%clk 0:01:45.1]}
19... Bxf3 {[%clk 0:02:28.7]} 20. Rxf3 {[%clk 0:01:47]} 20... Nf6 {[%clk
0:02:27]} 21. h3 {[%clk 0:01:40.6]} 21... Qc6 {[%clk 0:02:25.3]} 22. Rb1 {[%clk
0:01:40.4]} 22... Ne8 {[%clk 0:02:19.9]} 23. c5 {[%clk 0:01:30.2]} 23... bxc5
{[%clk 0:01:51.1]} 24. Qxb8 {[%clk 0:01:29]} 24... Rxb8 {[%clk 0:01:52.5]} 25.
Rxb8 {[%clk 0:01:30.1]} 25... cxd4 {[%clk 0:01:54]} 26. Bxd4 {[%clk 0:01:28.9]}
26... Bxd4+ {[%clk 0:01:54.6]} 27. cxd4 {[%clk 0:01:30.2]} 27... Kg7 {[%clk
0:01:55.6]} 28. Kh2 {[%clk 0:01:29.7]} 28... Nd6 {[%clk 0:01:54]} 29. Rb2 {[%clk
0:01:27.9]} 29... Qc1 {[%clk 0:01:48.4]} 30. Rfb3 {[%clk 0:01:24.8]} 30... Nf5
{[%clk 0:01:49.5]} 31. Nf3 {[%clk 0:01:24.9]} 31... Qxf4+ {[%clk 0:01:50.1]} 32.
Kg1 {[%clk 0:01:25.7]} 32... Nxd4 {[%clk 0:01:51]} 33. Nxd4 {[%clk 0:01:26]}
33... Qxd4+ {[%clk 0:01:51.9]} 34. Kh2 {[%clk 0:01:27.3]} 34... e5 {[%clk
0:01:50.4]} 35. Re2 {[%clk 0:01:26.7]} 35... e4 {[%clk 0:01:49.4]} 36. Rbe3
{[%clk 0:01:19.9]} 36... f5 {[%clk 0:01:50.3]} 37. Rb3 {[%clk 0:01:20.2]} 37...
h5 {[%clk 0:01:48.7]} 38. Rc2 {[%clk 0:01:20]} 38... Qd6+ {[%clk 0:01:47.1]} 39.
g3 {[%clk 0:01:17.5]} 39... h4 {[%clk 0:01:48.4]} 40. Kg2 {[%clk 0:01:17.4]}
40... hxg3 {[%clk 0:01:49]} 41. Rxg3 {[%clk 0:01:18.5]} 41... f4 {[%clk
0:01:47.5]} 42. Rgc3 {[%clk 0:01:14.1]} 42... f3+ {[%clk 0:01:48.7]} 43. Kf2
{[%clk 0:01:14.3]} 43... Qh2+ {[%clk 0:01:43.1]} 44. Ke3 {[%clk 0:01:14.4]}
44... f2 {[%clk 0:01:35.8]} 45. Rc7+ {[%clk 0:00:57]} 45... Kh6 {[%clk
0:01:35.7]} 46. Rf7 {[%clk 0:00:56]} 46... f1=Q {[%clk 0:01:28.3]} 47. Rxh2
{[%clk 0:00:53.1]} 47... Qxf7 {[%clk 0:01:28.6]} 48. Rf2 {[%clk 0:00:52.2]}
48... Qa7+ {[%clk 0:01:28.7]} 49. Ke2 {[%clk 0:00:52.5]} 49... Qd4 {[%clk
0:01:29.5]} 50. Rf1 {[%clk 0:00:51.4]} 50... Qd3+ {[%clk 0:01:30.6]} 51. Kf2
{[%clk 0:00:52.4]} 51... e3+ {[%clk 0:01:32.1]} 52. Kg2 {[%clk 0:00:53.5]} 52...
e2 {[%clk 0:01:33.4]} 53. Re1 {[%clk 0:00:54.3]} 53... Qe3 {[%clk 0:01:34.7]}
54. a3 {[%clk 0:00:53.5]} 54... Kh5 {[%clk 0:01:35.4]} 55. a4 {[%clk 0:00:51.5]}
55... a5 {[%clk 0:01:36.7]} 56. Kh2 {[%clk 0:00:50]} 56... Qf2+ {[%clk
0:01:37.2]} 57. Kh1 {[%clk 0:00:51.9]} 57... Qxe1+ {[%clk 0:01:38.4]} 58. Kg2
{[%clk 0:00:53.8]} 58... Qf1+ {[%clk 0:01:39.6]} 59. Kh2 {[%clk 0:00:54.5]}
59... Qf2+ {[%clk 0:01:40.7]} 60. Kh1 {[%clk 0:00:55.4]} 60... e1=Q# {[%clk
0:01:42.6]} 0-1